[Event "USA Junior-ch 2022"]
[Site "Saint Louis"]
[Date "2022.07.10"]
[Round "4.1"]
[White "Espinosa, Pedro"]
[Black "Mishra, Abhimanyu"]
[Result "0-1"]
[ECO "D30"]
[WhiteElo "2130"]
[BlackElo "2553"]
[Annotator "TA"]
[PlyCount "98"]
[EventDate "2022.07.07"]
[EventType "tourn"]
[EventCountry "USA"]
[SourceTitle "playchess.com"]
[Source "ChessBase"]
[SourceQuality "1"]
[TimeControl "40/5400+30:1800+30"]

{[%evp 13,98,20,27,14,20,12,29,31,30,0,0,0,10,0,0,0,13,-39,-31,-121,-113,-145,-127,-145,-156,-144,-156,-178,-181,-158,-17,-22,-24,-156,-146,-147,-148,-161,-152,-216,-214,-216,-93,-83,-102,-127,-130,-111,-112,-193,-184,-225,-197,-216,-197,-204,-198,-259,-259,-339,-337,-289,-237,-295,-393,-393,-391,-383,-247,-281,-263,-400,-242,-212,-235,-623,-473,-1239,-1245,-1124,-1159,-2241,-1856,-29959,-7288,-5210,-5155]} 1. d4 {[%emt 0:00:02]} d5 {[%emt 0:00:06]} 2. c4 {[%emt 0:00:06]} c6 {[%emt 0:00:13]} 3. Nf3 {[%emt 0:00:20]} Nf6 {[%emt 0:00:14]} 4. e3 {[%emt 0:00:13]} e6 {[%emt 0:00:22]} 5. Bd3 {[%emt 0:00:20]} dxc4 {[%emt 0:01:33]} 6. Bxc4 {[%emt 0:00:07]} Nbd7 {[%emt 0:00:44]} 7. O-O {[%emt 0:00:36]} Bd6 {[%emt 0:00:46] The main line 7...Bd6 scores better than 7...b5.} 8. Re1 {[%emt 0:00:34] D30: Queen's Gambit Declined: Systems without Nc3.} O-O {[%emt 0:01:18]} 9. e4 {[%emt 0:00:30] And now e5 would win.} e5 {[%emt 0:00:26]} 10. h3 {[%emt 0:00:34] White has an edge.} Qc7 {[%emt 0:01:07] [#]} 11. Be3 $146 {[%emt 0:00:37]} ({Predecessor:} 11. dxe5 Nxe5 12. Nxe5 Bxe5 13. Nd2 Nd7 14. Nf3 Bd6 15. Be3 Ne5 16. Bb3 b6 17. Rc1 Nxf3+ 18. Qxf3 {½-½ (27) Amann,H (2408)-Dessaules,P (2381) ICCF email 2020}) 11... Nxe4 {[%emt 0:12:38]} 12. Qc2 {[%emt 0:00:09]} Nef6 {[%emt 0:10:36]} 13. Nc3 {[%emt 0:00:16] Inhibits e4.} b5 {[%emt 0:11:10][%cal Bb7b5,Bb5b4][%mdl 32]} 14. Bb3 {[%emt 0:07:58]} Bb7 {[%emt 0:08:10]} 15. Qf5 {[%emt 0:05:47]} (15. dxe5 $11 Nxe5 16. Ng5) 15... Rae8 {[%emt 0:06:31]} 16. Bc2 {[%emt 0:13:27]} ({White should try} 16. Ng5 $15) 16... Bc8 {[%emt 0:09:47][%cal Oe5e4]} 17. Qg5 {[%emt 0:04:32]} b4 $1 {[%emt 0:04:25]} 18. Ne4 {[%emt 0:02:55]} Nxe4 {[%emt 0:04:50]} 19. Bxe4 {[%emt 0:00:20]} Nf6 {[%emt 0:08:23]} 20. Bc2 {[%emt 0:01:52]} e4 {[%emt 0:03:44][%cal Be5e4,Be4f3][%mdl 32]} 21. Nd2 {[%emt 0:01:53]} Qe7 {[%emt 0:01:23]} ({Inferior is} 21... h6 22. Qh4 $11) (21... c5 $1 $17 {[%cal Rc5d4]} 22. Nb3 (22. dxc5 $2 Bh2+ 23. Kh1 Re5 $19) 22... Rd8) 22. Qh4 {[%emt 0:02:54]} h6 {[%emt 0:00:47] Prevents Bg5.} 23. f3 {[%emt 0:05:13]} (23. Rad1 $11) 23... Nd5 {[%emt 0:02:26]} 24. Qxe7 {[%emt 0:35:33]} Rxe7 {[%emt 0:00:49]} 25. Nc4 {[%emt 0:02:19]} exf3 {[%emt 0:01:28]} 26. Nxd6 {[%emt 0:02:13]} (26. Bf2 $17 Rxe1+ 27. Rxe1) 26... Rxe3 $19 {[%emt 0:01:28]} 27. Ba4 {[%emt 0:00:47]} Rd8 {[%emt 0:01:49]} (27... Rd3 $19 {is more deadly. Threatens to win with ...Rd2.} 28. Rad1 Rxd1 29. Bxd1 fxg2 30. Nxc8 Rxc8 31. Kxg2 Rd8) 28. Nxc8 $17 {[%emt 0:01:47]} Rxc8 {[%emt 0:00:11]} 29. Rxe3 {[%emt 0:00:16]} Nxe3 {[%emt 0:00:01]} 30. gxf3 {[%emt 0:00:20][%mdl 4096] Endgame KRB-KRN} Rd8 {[%emt 0:02:22] Black is more active.} 31. Bxc6 {[%emt 0:01:38]} (31. Kf2 $17 Nf5 32. Bxc6) 31... Rxd4 $19 {[%emt 0:03:18]} 32. Re1 {[%emt 0:01:16] [#]} Rd1 $1 {[%emt 0:00:40]} 33. Kf2 {[%emt 0:00:50]} Rxe1 {[%emt 0:00:09]} 34. Kxe1 {[%emt 0:00:02] KB-KN} Kf8 {[%emt 0:01:48]} 35. Ke2 {[%emt 0:00:49] [#]} (35. Kd2 $142 Nc4+ 36. Kc1) 35... Ng2 $1 {[%emt 0:00:41]} 36. Bd7 {[%emt 0:02:00]} Ke7 {[%emt 0:00:17]} 37. Bc8 {[%emt 0:00:30]} h5 {[%emt 0:01:36] White must now prevent ...Kf6.} 38. Kd3 {[%emt 0:00:31]} Kd8 {[%emt 0:00:29]} 39. Ba6 {[%emt 0:03:33]} Nf4+ {[%emt 0:00:30]} 40. Ke3 {[%emt 0:00:38]} g5 {[%emt 0:00:33]} 41. Bf1 {[%emt 0:32:43]} Ke7 {[%emt 0:11:29]} 42. Kd4 {[%emt 0:00:00]} (42. Ke4 $142) 42... Kd6 {[%emt 0:01:46]} 43. Ke4 {[%emt 0:00:00]} Ke6 {[%emt 0:01:48]} 44. Kd4 $2 {[%emt 0:00:00]} (44. Bc4+ Kf6 45. h4) 44... h4 {[%emt 0:01:39]} 45. a4 {[%emt 0:00:00]} (45. Ke4 $142 a5 46. a3) 45... bxa3 {[%emt 0:03:07]} 46. bxa3 {[%emt 0:00:00]} Kf5 {[%emt 0:06:17]} 47. a4 {[%emt 0:00:00] [#]} Nxh3 $1 {[%emt 0:02:48][%cal Of5f4][%mdl 512] aiming for ...Kf4!} 48. Bxh3+ {[%emt 0:00:00]} (48. Ke3 Nf4) 48... Kf4 {[%emt 0:00:01]} 49. Kd5 {[%emt 0:00:00]} Kxf3 {[%emt 0:01:06] Weighted Error Value: White=0.65/Black=0.15 (very precise)} 0-1

[Event "USA Junior-ch 2022"]
[Site "Saint Louis"]
[Date "2022.07.10"]
[Round "4.2"]
[White "Liang, Awonder"]
[Black "Yip, Carissa"]
[Result "1-0"]
[ECO "E70"]
[WhiteElo "2625"]
[BlackElo "2416"]
[Annotator "TA"]
[PlyCount "65"]
[EventDate "2022.07.07"]
[EventType "tourn"]
[EventCountry "USA"]
[SourceTitle "playchess.com"]
[Source "ChessBase"]
[SourceQuality "1"]
[TimeControl "40/5400+30:1800+30"]

{[%evp 9,65,54,60,58,48,25,37,25,78,40,32,31,66,64,66,85,68,66,63,8,137,143,155,138,250,125,122,123,131,120,190,213,423,422,422,414,402,412,508,438,564,558,570,572,537,580,572,578,558,555,669,655,648,637,637,622,633,615]} 1. d4 {[%emt 0:00:01]} Nf6 {[%emt 0:00:07]} 2. c4 {[%emt 0:00:01]} g6 {[%emt 0:00:32]} 3. Nc3 {[%emt 0:00:01]} Bg7 {[%emt 0:00:05]} 4. e4 {[%emt 0:00:04][%cal Be2e4,Be4e5][%mdl 32]} O-O {[%emt 0:00:08]} 5. Be2 {[%emt 0:00:04]} c6 {[%emt 0:04:08]} 6. h4 {[%emt 0:00:40] [#] E70: King's Indian: Miscellaneous lines with 4 e4, including 5 Nge2 and 5 Bd3 0-0 6 Nge2.} h5 $146 {[%emt 0:01:30]} ({Predecessor:} 6... d5 7. e5 Ne4 8. h5 Qa5 9. Bd2 Nxd2 10. Qxd2 Be6 11. cxd5 Bxd5 12. Nxd5 Qxd5 13. Bf3 Qd7 {0-1 (51) Chirila,I (2517)-Sadorra,J (2577) Dallas 2013}) 7. e5 {[%emt 0:00:02]} Nh7 {[%emt 0:00:34]} 8. g4 {[%emt 1:33:37] White is slightly better.} d6 {[%emt 0:05:20]} (8... hxg4 $1 $11 9. Bxg4 d6) 9. e6 {[%emt 0:00:00]} hxg4 {[%emt 0:06:25]} 10. Bxg4 {[%emt 0:00:00]} f5 {[%emt 0:02:08]} 11. Be2 {[%emt 0:00:00] d5 is the strong threat. White is more active.} Bxe6 {[%emt 0:00:23]} 12. Nf3 {[%emt 0:00:00]} ({Much weaker is} 12. h5 gxh5 13. Rxh5 Rf6 $11) 12... Bf7 {[%emt 0:02:02]} 13. h5 {[%emt 0:00:00]} gxh5 {[%emt 0:11:31]} 14. d5 {[%emt 0:00:00]} (14. Qc2 $14) 14... e6 {[%emt 0:05:05]} (14... cxd5 $11 15. cxd5 Qc8) 15. dxe6 $16 {[%emt 0:00:00]} Bxe6 {[%emt 0:01:02]} 16. Bf4 {[%emt 0:00:00]} b5 {[%emt 0:14:30]} (16... Nf6 $16) 17. Qxd6 {[%emt 0:00:00]} ({Less strong is} 17. Bxd6 Re8 $16) (17. cxb5 $18 {Black must now prevent Qd2.} d5 18. Qd2 (18. Rxh5 Nf6 $16)) 17... Qxd6 {[%emt 0:02:52]} 18. Bxd6 {[%emt 0:00:00]} Rd8 {[%emt 0:03:14]} 19. O-O-O {[%emt 0:00:00]} Nf6 {[%emt 0:02:36]} (19... Nd7 $16) 20. cxb5 $18 {[%emt 0:00:00]} Ng4 $2 {[%emt 0:05:47]} (20... cxb5 {keeps fighting.} 21. Ng5 Bc4) 21. Ng5 {[%emt 0:00:00]} Bh6 {[%emt 0:03:49]} 22. Bf4 {[%emt 0:00:00][%cal Bd6f4,Bf4g5,Bg5f6,Bf6c3][%mdl 32]} Bxg5 {[%emt 0:01:00]} 23. Bxg5 {[%emt 0:00:00]} Rc8 {[%emt 0:00:06]} 24. Rxh5 {[%emt 0:00:00] aiming for f3. White is clearly winning.} Bf7 {[%emt 0:00:57]} 25. Rh4 {[%emt 0:00:00]} cxb5 {[%emt 0:00:46]} 26. f3 {[%emt 0:00:00]} Ne5 {[%emt 0:01:31]} 27. Bf6 {[%emt 0:00:00][%csl Gf6][%cal Rh4h8]} Ng6 {[%emt 0:01:20] Prevents Rh8+.} 28. Rg1 {[%emt 0:00:00][%csl Gf6][%cal Rh4h8]} Kf8 {[%emt 0:00:41] [#]} 29. Rxg6 {[%emt 0:00:00][%mdl 512]} Rxc3+ {[%emt 0:00:33]} (29... Bxg6 30. Rh8+) 30. Bxc3 {[%emt 0:00:00] Threatening mate with Bb4+. This bishop pair is nice.} Bxg6 {[%emt 0:00:06]} 31. Rh8+ {[%emt 0:00:00]} Ke7 {[%emt 0:00:04]} 32. f4 {[%emt 0:00:00]} Be8 {[%emt 0:00:16] [#]} 33. Rxe8+ $1 {[%emt 0:00:00][%mdl 512] Weighted Error Value: White=0.15 (very precise) /Black=0.44} 1-0

[Event "USA Junior-ch 2022"]
[Site "Saint Louis"]
[Date "2022.07.10"]
[Round "4.3"]
[White "Hong, Andrew"]
[Black "Yoo, Christopher Woojin"]
[Result "0-1"]
[ECO "C11"]
[WhiteElo "2504"]
[BlackElo "2550"]
[Annotator "TA"]
[PlyCount "116"]
[EventDate "2022.07.07"]
[EventType "tourn"]
[EventCountry "USA"]
[SourceTitle "playchess.com"]
[Source "ChessBase"]
[SourceQuality "1"]
[TimeControl "40/5400+30:1800+30"]

{[%evp 15,116,4,18,12,16,3,3,3,6,6,0,1,2,3,11,24,32,25,58,45,25,0,0,1,1,0,0,0,0,-15,13,-6,-22,-16,0,-8,0,2,78,61,53,48,78,0,0,-52,-54,-53,-29,-43,-39,-56,-32,-26,-29,-76,-76,-118,-67,-60,-73,-176,0,-407,-385,-556,-556,-553,-451,-555,-500,-2127,-2112,-1688,-2942,-2469,-2284,-4910,-4902,-29953,-29956,-6195,-5397,-5285,-896,-29986,-29986,-29986,-29982,-29982,-29983,-29988,-29989,-29989,-29990,-29990,-29991,-29991,-29992,-29992,-29993,-29998,-29999]} 1. e4 {[%emt 0:00:13]} e6 {[%emt 0:00:11]} 2. d4 {[%emt 0:00:37]} d5 {[%emt 0:00:06]} 3. Nc3 {[%emt 0:00:05]} Nf6 {[%emt 0:00:04]} 4. e5 {[%emt 0:01:35]} Nfd7 {[%emt 0:00:05]} 5. f4 {[%emt 0:00:14]} c5 {[%emt 0:00:04]} 6. Nf3 {[%emt 0:00:05]} Nc6 {[%emt 0:00:04]} 7. Be3 {[%emt 0:00:29]} Be7 {[%emt 0:00:06]} 8. Qd2 {[%emt 0:06:02]} a6 {[%emt 0:00:05]} 9. a3 {[%emt 0:02:54] C11: French: Classical System: 4 e5 and 4 Bg5 dxe4.} O-O {[%emt 0:03:49]} 10. Rd1 {[%emt 0:09:16]} Qc7 {[%emt 0:08:12]} 11. dxc5 {[%emt 0:07:54] The position is equal.} Nxc5 {[%emt 0:02:42]} 12. Be2 {[%emt 0:05:03]} b5 {[%emt 0:05:58]} 13. O-O {[%emt 0:00:49]} Bb7 {[%emt 0:02:19]} 14. Qe1 {[%emt 0:02:20]} (14. b4 {looks sharper.} Ne4 15. Nxe4 dxe4 16. Qd7) 14... Ne4 {[%emt 0:07:08]} 15. Nxe4 {[%emt 0:07:45]} dxe4 {[%emt 0:00:05]} 16. Nd2 {[%emt 0:00:14] [#]} Nb8 $146 {[%emt 0:05:01]} ({Predecessor:} 16... Rad8 17. c3 Na5 18. Qf2 Nc4 19. Nxc4 Rxd1 20. Rxd1 bxc4 21. f5 exf5 22. Qxf5 Bc5 {½-½ (35) Malashenkov,A (2315)-Novak,J (2295) LSS email 2014}) 17. Rc1 {[%emt 0:07:11]} Nd7 {[%emt 0:04:07]} 18. c4 {[%emt 0:04:05]} b4 $1 {[%emt 0:00:15]} 19. c5 {[%emt 0:01:14]} bxa3 {[%emt 0:00:18]} 20. bxa3 {[%emt 0:03:59]} Bd5 {[%emt 0:02:00]} (20... Nxc5 $2 21. Nb3 $18) (20... Bxc5 $2 21. Bxc5 Nxc5 22. Nb3 $18) 21. Qf2 {[%emt 0:01:12]} Qc6 {[%emt 0:02:54]} 22. Rc3 {[%emt 0:08:36]} Rab8 {[%emt 0:03:48]} 23. Rfc1 {[%emt 0:02:29]} f6 {[%emt 0:05:14]} 24. Qg3 {[%emt 0:01:05]} Rb2 {[%emt 0:04:55]} 25. Bd1 {[%emt 0:02:59]} Rd8 {[%emt 0:13:58]} 26. h3 {[%emt 0:07:00]} f5 {[%emt 0:08:45]} (26... Ra2 $11 {keeps the balance.}) 27. Nc4 $16 {[%emt 0:04:23]} Bxc4 {[%emt 0:01:09]} 28. Rxc4 {[%emt 0:00:02]} Nf8 {[%emt 0:04:16]} 29. Qe1 {[%emt 0:02:21]} ({White should play} 29. Rb4 $16 Rxb4 30. axb4) 29... g5 $1 $11 {[%emt 0:01:53]} 30. Qc3 {[%emt 0:06:20]} (30. fxg5 $11 Rd3 31. R4c3) 30... Rbb8 $15 {[%emt 0:02:09]} 31. fxg5 {[%emt 0:02:09]} Rd3 {[%emt 0:01:42]} 32. Qe1 {[%emt 0:00:01]} Ng6 {[%emt 0:00:47]} 33. R4c3 {[%emt 0:02:38]} Rxc3 {[%emt 0:02:36]} (33... Nxe5 34. Bf4 Rd5 35. Qg3 $11) 34. Qxc3 {[%emt 0:00:04]} f4 {[%emt 0:00:05]} 35. Bd4 {[%emt 0:00:19]} (35. Bf2 $1 $11) 35... Bxg5 $17 {[%emt 0:00:47][%cal Of4f3]} 36. Qc4 {[%emt 0:00:33]} f3 $36 {[%emt 0:01:12][%mdl 2048] Black is pushing.} 37. Ba4 {[%emt 0:00:56]} Qc8 {[%emt 0:00:20]} 38. Rf1 {[%emt 0:02:09] [#]} (38. Rd1 $17 {is a better defense.}) 38... Nh4 $2 {[%emt 0:00:25]} ({Better is} 38... Nf4 $1 $19 39. Bd1 (39. gxf3 $2 Qf8 $19) 39... Qf8) 39. gxf3 $2 {[%emt 0:02:06][%mdl 8192]} (39. Bf2 $1 $11) 39... Nxf3+ $19 {[%emt 0:00:15]} 40. Kg2 {[%emt 0:00:10] [#]} (40. Rxf3 $142 exf3 41. Bb3) 40... Nd2 $1 {[%emt 0:01:20][%csl LRc4,LRf1]} 41. Qe2 {[%emt 0:05:36]} Nxf1 {[%emt 0:02:27]} 42. Qg4 {[%emt 0:03:18]} Rb7 {[%emt 0:01:43][%cal Ob7g7] Threatens to win with ...Rg7!} 43. Kxf1 {[%emt 0:02:08]} (43. Bb3 $142 Kh8 44. Bxe6) 43... Qd8 {[%emt 0:01:21]} 44. Bf2 {[%emt 0:09:09]} e3 {[%emt 0:01:42]} (44... Qd3+ $142 45. Kg1 Rg7) 45. Be1 {[%emt 0:04:29]} Qd3+ {[%emt 0:00:57]} 46. Kg2 {[%emt 0:01:05]} Qd5+ {[%emt 0:01:26]} 47. Kf1 {[%emt 0:01:33]} e2+ {[%emt 0:01:26]} 48. Kf2 {[%emt 0:01:00]} Qxc5+ {[%emt 0:00:20]} 49. Kg2 {[%emt 0:00:57]} Qd5+ {[%emt 0:00:27]} (49... Rg7 $142 50. Qxe6+ Kh8) 50. Kf2 {[%emt 0:00:32]} Qxe5 {[%emt 0:01:12] Black mates.} 51. Be8 {[%emt 0:02:27]} Rg7 {[%emt 0:01:38]} 52. Qxe2 {[%emt 0:00:29]} Qh2+ {[%emt 0:00:12]} 53. Kf3 {[%emt 0:00:38]} Qxh3+ {[%emt 0:00:17]} 54. Ke4 {[%emt 0:00:24]} Qf5+ {[%emt 0:00:22]} 55. Kd4 {[%emt 0:00:01]} Qd5+ {[%emt 0:00:11]} 56. Kc3 {[%emt 0:00:01]} Bf6+ {[%emt 0:00:11]} 57. Kc2 {[%emt 0:00:31]} Rc7+ {[%emt 0:00:05]} 58. Kb1 {[%emt 0:00:09]} Qb3+ {[%emt 0:00:05] Weighted Error Value: White=0.78/Black=0.21 (precise)} 0-1

[Event "USA Junior-ch 2022"]
[Site "Saint Louis"]
[Date "2022.07.10"]
[Round "4.4"]
[White "Daggupati, Balaji"]
[Black "Wang, Justin"]
[Result "1-0"]
[ECO "C59"]
[WhiteElo "2488"]
[BlackElo "2469"]
[Annotator "RC"]
[PlyCount "121"]
[EventDate "2022.07.07"]
[EventType "tourn"]
[EventCountry "USA"]
[SourceTitle "playchess.com"]
[Source "ChessBase"]
[SourceQuality "1"]
[TimeControl "40/5400+30:1800+30"]

1. e4 {[%emt 0:00:02]} e5 {[%emt 0:00:59]} 2. Nf3 {[%emt 0:00:03]} Nc6 {[%emt 0:00:09]} 3. Bc4 {[%emt 0:00:03]} Nf6 {[%emt 0:00:39]} 4. Ng5 {[%emt 0:00:05]} d5 {[%emt 0:00:05]} 5. exd5 {[%emt 0:00:04]} Na5 {[%emt 0:00:03]} 6. Bb5+ {[%emt 0:00:07]} c6 {[%emt 0:00:03]} 7. dxc6 {[%emt 0:00:08]} bxc6 {[%emt 0:00:04]} 8. Be2 {[%emt 0:00:08]} h6 {[%emt 0:00:52]} 9. Nf3 {[%emt 0:00:06]} e4 {[%emt 0:05:47]} 10. Ne5 {[%emt 0:00:12]} Bd6 {[%emt 0:00:17]} 11. d4 {[%emt 0:00:07]} exd3 {[%emt 0:00:06]} 12. Nxd3 {[%emt 0:00:05]} O-O {[%emt 0:00:09]} 13. b3 {[%emt 0:00:29]} Re8 {[%emt 0:06:44]} 14. O-O {[%emt 0:16:44]} Bf5 {[%emt 0:04:15]} 15. Bb2 {[%emt 0:05:02]} c5 {[%emt 0:02:46]} 16. Nd2 {[%emt 0:11:44]} Rc8 {[%emt 0:17:04]} 17. Ne1 {[%emt 0:12:09]} Be5 {[%emt 0:18:28]} 18. Bxe5 {[%emt 0:01:16]} Rxe5 {[%emt 0:00:06]} 19. Nef3 {[%emt 0:14:24]} Bxc2 {[%emt 0:00:44]} 20. Qxc2 {[%emt 0:00:19]} Rxe2 {[%emt 0:00:04]} 21. Rfe1 {[%emt 0:02:26]} Rxe1+ {[%emt 0:05:04]} 22. Rxe1 {[%emt 0:00:04]} Qb6 {[%emt 0:02:29]} 23. h3 {[%emt 0:06:40]} Qb4 {[%emt 0:05:47]} 24. Rc1 {[%emt 0:02:25]} Qf4 {[%emt 0:01:20]} 25. Qd3 {[%emt 0:00:42]} Qc7 {[%emt 0:00:56]} 26. Qa6 {[%emt 0:04:24]} Rb8 {[%emt 0:00:23]} 27. Qd3 {[%emt 0:02:26]} Nb7 {[%emt 0:01:16]} 28. Nc4 {[%emt 0:01:31]} Rd8 {[%emt 0:01:59]} 29. Qf5 {[%emt 0:00:06]} Rd5 {[%emt 0:01:16]} 30. Qc2 {[%emt 0:00:11]} Rd8 {[%emt 0:02:08]} 31. Ne3 {[%emt 0:00:50]} Qf4 {[%emt 0:00:25]} 32. Qe2 {[%emt 0:01:29]} Nd5 {[%emt 0:01:10]} 33. Rc4 {[%emt 0:02:14]} Qd6 {[%emt 0:00:04]} 34. Nf5 {[%emt 0:02:55]} Qf6 {[%emt 0:01:57]} 35. Ng3 {[%emt 0:00:17]} Nf4 {[%emt 0:07:04]} 36. Qe3 {[%emt 0:03:37]} Nd5 {[%emt 0:00:04]} 37. Qe2 {[%emt 0:00:03]} Nf4 {[%emt 0:00:09]} 38. Qe3 {[%emt 0:01:54]} Nd5 {[%emt 0:00:06]} 39. Qc1 {[%emt 0:01:03]} Nb4 {[%emt 0:01:49]} 40. a3 {[%emt 0:03:09]} Nd3 {[%emt 0:04:21]} 41. Qe3 {[%emt 0:33:33]} Qe6 {[%emt 0:30:23]} 42. Re4 {[%emt 0:00:00]} Qxb3 {[%emt 0:00:00]} 43. Nf5 {[%emt 0:00:00]} Nd6 {[%emt 0:00:00]} 44. Nxd6 {[%emt 0:00:00]} Rxd6 {[%emt 0:00:00]} 45. Re8+ {[%emt 0:00:00]} Kh7 {[%emt 0:00:00]} 46. Qe4+ {[%emt 0:00:00]} Rg6 {[%emt 0:00:00]} 47. Qa8 {[%emt 0:00:00]} Re6 {[%emt 0:00:00]} 48. Rh8+ {[%emt 0:00:00]} Kg6 {[%emt 0:00:00]} 49. Nh4+ {[%emt 0:00:00]} Kg5 {[%emt 0:00:20]} 50. Qf3 {[%emt 0:00:00]} g6 {[%emt 0:00:15]} 51. Rd8 {[%emt 0:00:00]} Qb1+ {[%emt 0:02:16]} 52. Kh2 {[%emt 0:00:00]} Ne5 {[%emt 0:00:08]} 53. Rd5 {[%emt 0:00:56]} f5 {[%emt 0:04:47]} 54. Qg3+ {[%emt 0:00:47]} Kf6 {[%emt 0:01:34]} 55. f4 {[%emt 0:00:04]} g5 {[%emt 0:06:44]} 56. fxe5+ {[%emt 0:00:10]} Kf7 {[%emt 0:00:08]} 57. Nf3 {[%emt 0:00:32]} Rc6 {[%emt 0:01:30]} 58. e6+ {[%emt 0:00:11]} Rxe6 {[%emt 0:00:04]} 59. Qc7+ {[%emt 0:00:22]} Kf6 {[%emt 0:01:48]} 60. Ne5 {[%emt 0:00:20]} Re7 {[%emt 0:00:35]} 61. Qd6+ {[%emt 0:00:08]} 1-0

[Event "USA Junior-ch 2022"]
[Site "Saint Louis"]
[Date "2022.07.10"]
[Round "4.5"]
[White "Brodsky, David"]
[Black "Jacobson, Brandon"]
[Result "0-1"]
[ECO "C54"]
[WhiteElo "2496"]
[BlackElo "2544"]
[Annotator "TA"]
[PlyCount "80"]
[EventDate "2022.07.07"]
[EventType "tourn"]
[EventCountry "USA"]
[SourceTitle "playchess.com"]
[Source "ChessBase"]
[SourceQuality "1"]
[TimeControl "40/5400+30:1800+30"]

{[%evp 11,80,12,13,12,24,25,33,0,0,-50,-42,-47,-26,-23,13,-2,12,-68,-63,-49,-48,-62,-70,-63,-48,-130,-37,-30,-9,-110,-109,-118,-131,-170,-166,-156,-169,-201,-188,-212,-214,-269,-254,-403,-398,-414,-394,-381,-350,-507,-452,-604,-621,-616,-531,-590,-598,-610,-433,-636,-508,-477,-418,-520,-506,-494,-491,-546,-546,-1439,-554]} 1. e4 {[%emt 0:00:01]} e5 {[%emt 0:00:08]} 2. Nf3 {[%emt 0:00:03]} Nc6 {[%emt 0:00:06]} 3. Bc4 {[%emt 0:00:02]} Nf6 {[%emt 0:00:08]} 4. d3 {[%emt 0:00:05][%cal Bd2d3,Bd3d4][%mdl 32]} Bc5 {[%emt 0:00:07]} 5. c3 {[%emt 0:00:05]} d6 {[%emt 0:00:06]} 6. O-O {[%emt 0:00:05]} a6 {[%emt 0:00:04]} 7. a4 {[%emt 0:00:08] C54: Giuoco Piano: 4 c3 Nf6, main lines with 5 d4 and 5 d3.} Ba7 {[%emt 0:00:06]} 8. Nbd2 {[%emt 0:00:05]} Nh5 {[%emt 0:00:27][%cal Bf6h5,Bh5f4,Bf4h3][%mdl 32] [#]} 9. d4 $146 {[%emt 0:08:51][%cal Of3e5] White is slightly better.} ({Predecessor:} 9. Nb3 Qf6 10. Nxe5 Nxe5 11. Qxh5 Bg4 12. Qg5 Be2 13. Qxf6 gxf6 14. Bf4 Nxc4 15. dxc4 Bxc4 {0-1 (34) Vignesh,N (2436)-Wagner,D (2590) Moscow 2020}) 9... Nf4 {[%emt 0:10:02]} 10. g3 {[%emt 0:11:33]} (10. b4 $11) 10... Nh3+ $15 {[%emt 0:16:10]} 11. Kg2 {[%emt 0:00:13]} h6 {[%emt 0:04:39]} 12. Nh4 {[%emt 0:10:18]} Nf4+ {[%emt 0:07:01]} 13. Kh1 {[%emt 0:01:32]} Qf6 {[%emt 0:20:26][%cal Oe5d4]} 14. Nf5 {[%emt 0:15:26]} (14. gxf4 $11 Qxh4 15. Nf3) 14... Ng6 {[%emt 0:00:57][%cal Re5d4]} 15. f4 {[%emt 0:12:40]} exd4 {[%emt 0:02:21]} 16. Nxd4 {[%emt 0:04:39]} Nxd4 {[%emt 0:00:20]} 17. cxd4 {[%emt 0:00:55]} Qxd4 {[%emt 0:00:59] ...Bh3 is the strong threat.} 18. Qh5 {[%emt 0:03:38] Prevents Bh3.} (18. Qc2 $1 $15) 18... Qf6 {[%emt 0:01:12]} (18... Bd7 $17 {aiming for ...Bc6.} 19. Qe2 Bc6) 19. Nf3 {[%emt 0:02:41]} Ne7 {[%emt 0:13:24]} 20. f5 {[%emt 0:06:45] Inhibits Be6.} (20. Bd2 $11 {remains equal.}) 20... g6 $17 {[%emt 0:01:50] Black keeps a firm grip on the game.} 21. fxg6 {[%emt 0:03:52]} fxg6 {[%emt 0:06:22]} 22. Qh4 {[%emt 0:00:17]} Qxh4 {[%emt 0:01:32]} 23. Nxh4 {[%emt 0:00:07]} Bh3 {[%emt 0:00:47]} 24. Ng2 {[%emt 0:02:11]} g5 {[%emt 0:05:47]} 25. Ra3 {[%emt 0:02:56]} Nc6 {[%emt 0:01:40]} 26. Bd5 {[%emt 0:02:17]} O-O-O {[%emt 0:00:15]} 27. Raf3 {[%emt 0:01:22] Inhibits Rdf8.} (27. Be3 $142) 27... Ne5 $19 {[%emt 0:00:46]} 28. Rf6 {[%emt 0:00:22]} Rde8 {[%emt 0:01:04][%cal Bd8e8,Be8e4,Be4e7][%mdl 32]} 29. Bd2 {[%emt 0:01:36]} Bd4 {[%emt 0:01:32]} 30. b4 {[%emt 0:02:05]} (30. Bc3 {was worth a try.} Bxc3 31. bxc3) 30... Ng4 {[%emt 0:02:20]} 31. Rf7 {[%emt 0:00:51]} c6 {[%emt 0:00:14] Prevents b5.} 32. Bb3 {[%emt 0:01:48]} Rxe4 {[%emt 0:00:13] [#] White must now prevent ...Re2.} 33. Bd1 {[%emt 0:01:06] Against Re2} Rhe8 {[%emt 0:00:02][%cal Oe4e2] Strongly threatening ...Re2!} 34. b5 {[%emt 0:01:46]} R4e7 {[%emt 0:01:38]} 35. R7f3 {[%emt 0:00:43]} (35. Rxe7 $142 Rxe7 36. Bxg4+ Bxg4 37. Re1 Rxe1+ 38. Nxe1) 35... h5 {[%emt 0:00:51]} 36. Rf8 {[%emt 0:01:22]} Kd7 {[%emt 0:01:54]} 37. Bxg5 {[%emt 0:01:14]} Rxf8 {[%emt 0:00:23] Black is clearly winning.} 38. Rxf8 {[%emt 0:00:05]} Re5 {[%emt 0:00:14]} 39. bxc6+ {[%emt 0:03:33]} bxc6 {[%emt 0:00:02]} 40. Bf4 {[%emt 0:00:35]} Nf2+ {[%emt 0:00:09] Weighted Error Value: White=0.58/Black=0.21 (precise)} 0-1